[Event "1er Tournoi de GM du Barreau de Paris"]
[Site "Paris, France"]
[Date "2019.12.18"]
[Round "4.4"]
[White "MAURIZZI, Marc Andria"]
[Black "RAKOTOMAHARO, Fy Antenaina"]
[Result "1-0"]
[TimeControl "1h30+30s\cp"]
[WhiteTitle "IM"]
[BlackTitle "IM"]
[WhiteElo "2404"]
[BlackElo "2438"]

1. e4 {[%clk 01:30:57]} {[%emt 00:00:02]} c5 {[%clk 01:25:21]} {[%emt
00:05:39]} 2. Nf3 {[%clk 01:31:19]} {[%emt 00:00:08]} Nc6 {[%clk 01:25:26]}
{[%emt 00:00:25]} 3. d4 {[%clk 01:31:41]} {[%emt 00:00:07]} cxd4 {[%clk
01:25:48]} {[%emt 00:00:08]} 4. Nxd4 {[%clk 01:32:06]} {[%emt 00:00:06]} Nf6
{[%clk 01:26:07]} {[%emt 00:00:11]} 5. Nc3 {[%clk 01:32:30]} {[%emt 00:00:06]}
e6 {[%clk 01:26:27]} {[%emt 00:00:10]} 6. Nxc6 {[%clk 01:31:57]} {[%emt
00:01:04]} bxc6 {[%clk 01:26:51]} {[%emt 00:00:06]} 7. e5 {[%clk 01:32:23]}
{[%emt 00:00:04]} Nd5 {[%clk 01:27:14]} {[%emt 00:00:06]} 8. Ne4 {[%clk
01:32:49]} {[%emt 00:00:03]} Qc7 {[%clk 01:27:41]} {[%emt 00:00:04]} 9. f4
{[%clk 01:33:13]} {[%emt 00:00:06]} Qb6 {[%clk 01:28:06]} {[%emt 00:00:05]} 10.
c4 {[%clk 01:33:35]} {[%emt 00:00:09]} Bb4+ {[%clk 01:28:31]} {[%emt 00:00:05]}
11. Ke2 {[%clk 01:34:02]} {[%emt 00:00:03]} f5 {[%clk 01:28:51]} {[%emt
00:00:10]} 12. exf6 {[%clk 01:33:57]} {[%emt 00:00:36]} Nxf6 {[%clk 01:29:12]}
{[%emt 00:00:08]} 13. Be3 {[%clk 01:34:20]} {[%emt 00:00:07]} Qd8 {[%clk
01:29:09]} {[%emt 00:00:32]} 14. Nd6+ {[%clk 01:34:44]} {[%emt 00:00:07]} Bxd6
{[%clk 01:29:36]} {[%emt 00:00:04]} 15. Qxd6 {[%clk 01:35:10]} {[%emt
00:00:04]} Bb7 {[%clk 01:29:48]} {[%emt 00:00:17]} 16. Rd1 {[%clk 01:30:38]}
{[%emt 00:05:02]} c5 {[%clk 01:29:42]} {[%emt 00:00:36]} 17. Qxc5 {[%clk
01:25:14]} {[%emt 00:05:54]} Rc8 {[%clk 01:27:03]} {[%emt 00:03:09]} 18. Qb4
{[%clk 01:17:06]} {[%emt 00:08:38]} Qc7 {[%clk 01:23:42]} {[%emt 00:03:51]} 19.
Ke1 {[%clk 01:04:51]} {[%emt 00:12:43]} Ng4 {[%clk 01:04:05]} {[%emt 00:20:07]}
20. Bc1 {[%clk 00:53:52]} {[%emt 00:11:29]} Qc6 {[%clk 01:03:05]} {[%emt
00:01:31]} 21. Qd6 {[%clk 00:53:01]} {[%emt 00:01:23]} Qe4+ {[%clk 01:02:25]}
{[%emt 00:01:08]} 22. Be2 {[%clk 00:53:26]} {[%emt 00:00:05]} Nf6 {[%clk
01:02:50]} {[%emt 00:00:05]} 23. Qd4 {[%clk 00:50:05]} {[%emt 00:03:52]} Qxg2
{[%clk 00:47:45]} {[%emt 00:15:35]} 24. Rg1 {[%clk 00:50:13]} {[%emt 00:00:21]}
Qxh2 {[%clk 00:48:10]} {[%emt 00:00:06]} 25. Rxg7 {[%clk 00:44:05]} {[%emt
00:06:38]} Rf8 {[%clk 00:41:57]} {[%emt 00:06:43]} 26. f5 {[%clk 00:29:23]}
{[%emt 00:15:13]} Rf7 {[%clk 00:32:15]} {[%emt 00:10:11]} 27. Rxf7 {[%clk
00:18:57]} {[%emt 00:10:56]} Kxf7 {[%clk 00:32:40]} {[%emt 00:00:05]} 28. fxe6+
{[%clk 00:19:11]} {[%emt 00:00:17]} dxe6 {[%clk 00:23:14]} {[%emt 00:09:55]} 29.
Bf4 {[%clk 00:17:22]} {[%emt 00:02:19]} Qg2 {[%clk 00:19:19]} {[%emt 00:04:25]}
30. Rd3 {[%clk 00:13:36]} {[%emt 00:04:17]} Qh1+ {[%clk 00:13:29]} {[%emt
00:06:20]} 31. Kd2 {[%clk 00:13:34]} {[%emt 00:00:32]} Ne4+ {[%clk 00:13:54]}
{[%emt 00:00:04]} 32. Kc2 {[%clk 00:13:58]} {[%emt 00:00:06]} Nc5 {[%clk
00:14:23]} {[%emt 00:00:02]} 33. Rd1 {[%clk 00:12:58]} {[%emt 00:01:30]} Qg2
{[%clk 00:07:59]} {[%emt 00:06:53]} 34. Qe3 {[%clk 00:12:19]} {[%emt 00:01:09]}
Be4+ {[%clk 00:01:20]} {[%emt 00:07:09]} 35. Kc1 {[%clk 00:12:00]} {[%emt
00:00:49]} Bg6 {[%clk 00:01:47]} {[%emt 00:00:03]} 36. Be5 {[%clk 00:10:58]}
{[%emt 00:01:32]} Ke8 {[%clk 00:00:47]} {[%emt 00:01:29]} 37. Bd4 {[%clk
00:09:32]} {[%emt 00:01:56]} Qe4 {[%clk 00:00:32]} {[%emt 00:00:45]} 38. Qxe4
{[%clk 00:09:47]} {[%emt 00:00:15]} Nxe4 {[%clk 00:00:39]} {[%emt 00:00:23]} 39.
b3 {[%clk 00:09:30]} {[%emt 00:00:47]} Rc7 {[%clk 00:00:53]} {[%emt 00:00:16]}
40. Kb2 {[%clk 00:09:24]} {[%emt 00:00:37]} Rf7 {[%clk 00:00:50]} {[%emt
00:00:33]} 41. c5 {[%clk 00:08:58]} {[%emt 00:00:56]} Nf2 {[%clk 00:00:32]}
{[%emt 00:00:48]} 42. Bb5+ {[%clk 00:08:12]} {[%emt 00:01:16]} Ke7 {[%clk
00:00:39]} {[%emt 00:00:23]} 43. Rd2 {[%clk 00:08:25]} {[%emt 00:00:17]} Ne4
{[%clk 00:00:49]} {[%emt 00:00:20]} 44. Rc2 {[%clk 00:08:18]} {[%emt 00:00:37]}
Ng3 {[%clk 00:00:35]} {[%emt 00:00:44]} 45. Rc1 {[%clk 00:08:26]} {[%emt
00:00:22]} Nf5 {[%clk 00:00:38]} {[%emt 00:00:27]} 46. Be5 {[%clk 00:07:42]}
{[%emt 00:01:13]} Ne3 {[%clk 00:00:56]} {[%emt 00:00:12]} 47. Bd6+ {[%clk
00:07:30]} {[%emt 00:00:42]} Kd8 {[%clk 00:01:15]} {[%emt 00:00:11]} 48. c6
{[%clk 00:07:51]} {[%emt 00:00:08]} Nd5 {[%clk 00:01:11]} {[%emt 00:00:35]} 49.
a4 {[%clk 00:06:59]} {[%emt 00:01:23]} a5 {[%clk 00:00:41]} {[%emt 00:01:00]}
50. Ka3 {[%clk 00:06:32]} {[%emt 00:00:57]} Be4 {[%clk 00:00:33]} {[%emt
00:00:37]} 51. Bg3 {[%clk 00:06:06]} {[%emt 00:00:55]} Rg7 {[%clk 00:00:33]}
{[%emt 00:00:31]} 52. Be1 {[%clk 00:06:20]} {[%emt 00:00:16]} Ra7 {[%clk
00:00:50]} {[%emt 00:00:14]} 53. Bg3 {[%clk 00:05:16]} Kc8 {[%clk 00:00:32]}
{[%emt 00:02:21]} 54. Be5 {[%clk 00:05:24]} Bg6 {[%clk 00:00:40]} {[%emt
00:00:45]} 55. Rf1 {[%clk 00:05:11]} Bf5 {[%clk 00:00:50]} {[%emt 00:01:03]} 56.
Bc4 {[%clk 00:04:58]} Rf7 {[%clk 00:00:38]} {[%emt 00:01:25]} 57. Ba6+ {[%clk
00:04:51]} Kd8 {[%clk 00:01:00]} {[%emt 00:00:45]} 58. Rd1 {[%clk 00:04:55]}
Ke8 {[%clk 00:00:51]} {[%emt 00:01:04]} 59. Bb5 {[%clk 00:04:45]} Nc7 {[%clk
00:00:51]} 60. Bc3 {[%clk 00:04:45]} Bc2 {[%clk 00:00:51]} 61. Rd2 {[%clk
00:04:45]} Be4 {[%clk 00:00:51]} 62. Bxa5 {[%clk 00:04:45]} Bd5 {[%clk
00:00:51]} 63. Kb4 {[%clk 00:04:45]} Kd8 {[%clk 00:00:51]} 64. Bc4 {[%clk
00:04:45]} Kc8 {[%clk 00:00:51]} 65. Bxc7 {[%clk 00:04:45]} Bxc4 {[%clk
00:00:51]} 66. Kxc4 {[%clk 00:04:45]} Kxc7 {[%clk 00:00:51]} 67. Rd7+ {[%clk
00:04:45]} Rxd7 {[%clk 00:00:51]} 68. cxd7 {[%clk 00:04:45]} h5 {[%clk
00:00:51]} 69. Kd4 {[%clk 00:04:45]} 1-0

[Event "1er Tournoi de GM du Barreau de Paris"]
[Site "Paris, France"]
[Date "2019.12.18"]
[Round "4.5"]
[White "GULIYEV, Namig"]
[Black "LOISEAU, Quentin"]
[Result "1/2-1/2"]
[TimeControl "1h30+30s\cp"]
[WhiteTitle "GM"]
[BlackTitle "IM"]
[WhiteElo "2548"]
[BlackElo "2470"]

1. e4 {[%clk 01:17:40]} {[%emt 00:13:19]} e5 {[%clk 01:30:45]} {[%emt
00:00:16]} 2. Nf3 {[%clk 01:18:00]} {[%emt 00:00:10]} Nc6 {[%clk 01:31:06]}
{[%emt 00:00:08]} 3. Bb5 {[%clk 01:17:51]} {[%emt 00:00:39]} a6 {[%clk
01:31:25]} {[%emt 00:00:12]} 4. Ba4 {[%clk 01:18:07]} {[%emt 00:00:14]} Nf6
{[%clk 01:31:37]} {[%emt 00:00:17]} 5. O-O {[%clk 01:18:05]} {[%emt 00:00:32]}
Be7 {[%clk 01:31:49]} {[%emt 00:00:18]} 6. d3 {[%clk 01:12:43]} {[%emt
00:05:52]} b5 {[%clk 01:31:29]} {[%emt 00:00:50]} 7. Bb3 {[%clk 01:13:07]}
{[%emt 00:00:06]} d6 {[%clk 01:31:47]} {[%emt 00:00:11]} 8. a4 {[%clk
01:09:42]} {[%emt 00:03:56]} Bd7 {[%clk 01:29:44]} {[%emt 00:02:32]} 9. c3
{[%clk 01:08:37]} {[%emt 00:01:35]} O-O {[%clk 01:29:01]} {[%emt 00:01:13]} 10.
Nbd2 {[%clk 01:04:46]} {[%emt 00:04:21]} Na5 {[%clk 01:27:54]} {[%emt
00:01:37]} 11. Bc2 {[%clk 01:05:10]} {[%emt 00:00:07]} c5 {[%clk 01:28:18]}
{[%emt 00:00:05]} 12. axb5 {[%clk 01:05:37]} {[%emt 00:00:04]} axb5 {[%clk
01:28:23]} {[%emt 00:00:24]} 13. Re1 {[%clk 01:06:02]} {[%emt 00:00:05]} Qc7
{[%clk 01:19:59]} {[%emt 00:08:54]} 14. Nf1 {[%clk 01:06:21]} {[%emt 00:00:11]}
Nc6 {[%clk 01:18:25]} {[%emt 00:02:05]} 15. Rxa8 {[%clk 01:05:05]} {[%emt
00:01:46]} Rxa8 {[%clk 01:18:51]} {[%emt 00:00:04]} 16. Ne3 {[%clk 01:05:30]}
{[%emt 00:00:05]} Bd8 {[%clk 00:59:03]} {[%emt 00:20:18]} 17. h3 {[%clk
01:04:41]} {[%emt 00:01:19]} 1/2-1/2



[ePGN "0.1;DGT LiveChess/2.2.5"]

[Event "1er Tournoi de GM du Barreau de Paris"]
[Site "Paris, France"]
[Date "2019.12.18"]
[Round "5.1"]
[White "LAMARD, Guillaume"]
[Black "DAVID, Alberto"]
[Result "1/2-1/2"]
[TimeControl "1h30+30s\cp"]
[WhiteTitle "FM"]
[BlackTitle "GM"]
[WhiteElo "2452"]
[BlackElo "2545"]

1. e4 {[%clk 01:30:57]} {[%emt 00:00:02]} c6 {[%clk 01:29:30]} {[%emt
00:01:31]} 2. Nf3 {[%clk 01:31:21]} {[%emt 00:00:06]} g6 {[%clk 01:25:18]}
{[%emt 00:04:42]} 3. Nc3 {[%clk 01:31:33]} {[%emt 00:00:18]} Bg7 {[%clk
01:25:25]} {[%emt 00:00:22]} 4. d4 {[%clk 01:32:00]} {[%emt 00:00:04]} d6
{[%clk 01:25:52]} {[%emt 00:00:04]} 5. h3 {[%clk 01:27:34]} {[%emt 00:04:55]}
Nf6 {[%clk 01:20:30]} {[%emt 00:05:51]} 6. Bd3 {[%clk 01:27:26]} {[%emt
00:00:38]} Qc7 {[%clk 01:14:52]} {[%emt 00:06:08]} 7. O-O {[%clk 01:26:43]}
{[%emt 00:01:13]} e5 {[%clk 01:14:59]} {[%emt 00:00:23]} 8. dxe5 {[%clk
01:14:35]} {[%emt 00:12:39]} dxe5 {[%clk 01:15:15]} {[%emt 00:00:14]} 9. Ne2
{[%clk 01:15:01]} {[%emt 00:00:04]} O-O {[%clk 00:59:54]} {[%emt 00:15:51]} 10.
Ng3 {[%clk 01:15:19]} {[%emt 00:00:12]} Nbd7 {[%clk 00:46:04]} {[%emt
00:14:21]} 11. Be3 {[%clk 01:15:28]} {[%emt 00:00:20]} Rd8 {[%clk 00:46:27]}
{[%emt 00:00:06]} 12. Qd2 {[%clk 00:56:29]} {[%emt 00:19:30]} Nf8 {[%clk
00:44:55]} {[%emt 00:02:02]} 13. Qc3 {[%clk 00:56:22]} {[%emt 00:00:37]} Ne8
{[%clk 00:44:03]} {[%emt 00:01:22]} 1/2-1/2

[Event "1er Tournoi de GM du Barreau de Paris"]
[Site "Paris, France"]
[Date "2019.12.18"]
[Round "5.2"]
[White "SOCHACKI, Wojtek"]
[Black "DI NICOLANTONIO, Lucas"]
[Result "1/2-1/2"]
[TimeControl "1h30+30s\cp"]
[WhiteTitle "IM"]
[BlackTitle "IM"]
[WhiteElo "2320"]
[BlackElo "2408"]

1. e4 {[%clk 01:30:57]} {[%emt 00:00:02]} c5 {[%clk 01:30:47]} {[%emt
00:00:13]} 2. Nf3 {[%clk 01:31:24]} {[%emt 00:00:04]} d6 {[%clk 01:31:12]}
{[%emt 00:00:05]} 3. d4 {[%clk 01:31:51]} {[%emt 00:00:03]} cxd4 {[%clk
01:31:37]} {[%emt 00:00:05]} 4. Qxd4 {[%clk 01:32:19]} {[%emt 00:00:02]} Nf6
{[%clk 01:31:54]} {[%emt 00:00:12]} 5. Be2 {[%clk 01:32:44]} {[%emt 00:00:06]}
Nc6 {[%clk 01:30:43]} {[%emt 00:01:40]} 6. Qe3 {[%clk 01:33:10]} {[%emt
00:00:05]} g6 {[%clk 01:30:52]} {[%emt 00:00:20]} 7. O-O {[%clk 01:33:34]}
{[%emt 00:00:06]} Bg7 {[%clk 01:31:17]} {[%emt 00:00:05]} 8. c4 {[%clk
01:29:41]} {[%emt 00:04:24]} O-O {[%clk 01:31:23]} {[%emt 00:00:25]} 9. Nc3
{[%clk 01:23:27]} {[%emt 00:06:44]} Bg4 {[%clk 01:30:29]} {[%emt 00:01:23]} 10.
Rd1 {[%clk 01:23:02]} {[%emt 00:00:55]} Bxf3 {[%clk 01:21:12]} {[%emt
00:09:47]} 11. Bxf3 {[%clk 01:21:58]} {[%emt 00:01:35]} Qa5 {[%clk 01:20:15]}
{[%emt 00:01:27]} 12. Bd2 {[%clk 01:14:10]} {[%emt 00:08:17]} Nd7 {[%clk
00:56:58]} {[%emt 00:23:47]} 13. Rac1 {[%clk 00:46:22]} {[%emt 00:28:19]} Qc5
{[%clk 00:51:52]} {[%emt 00:05:37]} 14. Na4 {[%clk 00:45:43]} {[%emt 00:01:10]}
Qxe3 {[%clk 00:51:57]} {[%emt 00:00:24]} 15. Bxe3 {[%clk 00:46:01]} {[%emt
00:00:12]} Nb6 {[%clk 00:49:16]} {[%emt 00:03:11]} 16. Nxb6 {[%clk 00:44:09]}
{[%emt 00:02:22]} axb6 {[%clk 00:49:40]} {[%emt 00:00:06]} 17. b3 {[%clk
00:37:44]} {[%emt 00:06:55]} Rxa2 {[%clk 00:49:11]} {[%emt 00:00:58]} 18. Bxb6
{[%clk 00:38:10]} {[%emt 00:00:04]} Rfa8 {[%clk 00:36:27]} {[%emt 00:13:14]} 19.
Be3 {[%clk 00:36:48]} {[%emt 00:01:51]} Rb2 {[%clk 00:33:02]} {[%emt 00:03:56]}
20. Rb1 {[%clk 00:31:02]} {[%emt 00:06:16]} Ra3 {[%clk 00:27:47]} {[%emt
00:05:45]} 21. Rxb2 {[%clk 00:30:15]} {[%emt 00:01:17]} Bxb2 {[%clk 00:28:12]}
{[%emt 00:00:05]} 22. Rb1 {[%clk 00:30:38]} {[%emt 00:00:06]} Bd4 {[%clk
00:28:12]} {[%emt 00:00:31]} 23. Bd2 {[%clk 00:19:34]} {[%emt 00:11:34]} Ra2
{[%clk 00:24:50]} {[%emt 00:03:51]} 24. Be1 {[%clk 00:19:30]} {[%emt 00:00:33]}
Ne5 {[%clk 00:24:20]} {[%emt 00:01:00]} 25. Kf1 {[%clk 00:19:00]} {[%emt
00:01:01]} Nd3 {[%clk 00:14:41]} {[%emt 00:10:09]} 26. Be2 {[%clk 00:19:24]}
{[%emt 00:00:06]} Nc5 {[%clk 00:15:06]} {[%emt 00:00:05]} 27. f3 {[%clk
00:19:17]} {[%emt 00:00:37]} e5 {[%clk 00:14:43]} {[%emt 00:00:53]} 28. b4
{[%clk 00:13:48]} {[%emt 00:05:59]} Ne6 {[%clk 00:14:09]} {[%emt 00:01:05]} 29.
g3 {[%clk 00:07:48]} {[%emt 00:06:29]} Rc2 {[%clk 00:13:51]} {[%emt 00:00:48]}
30. h4 {[%clk 00:07:43]} {[%emt 00:00:36]} Be3 {[%clk 00:10:55]} {[%emt
00:03:26]} 31. Rb3 {[%clk 00:07:05]} {[%emt 00:01:08]} Bd4 {[%clk 00:06:29]}
{[%emt 00:04:56]} 32. Ra3 {[%clk 00:06:42]} {[%emt 00:00:53]} Rc1 {[%clk
00:05:43]} {[%emt 00:01:15]} 33. Bd3 {[%clk 00:06:44]} {[%emt 00:00:28]} Bb2
{[%clk 00:01:50]} {[%emt 00:04:23]} 34. Rb3 {[%clk 00:06:52]} {[%emt 00:00:22]}
Bd4 {[%clk 00:01:26]} {[%emt 00:00:54]} 35. Rb1 {[%clk 00:07:01]} {[%emt
00:00:20]} Rxb1 {[%clk 00:01:45]} {[%emt 00:00:11]} 36. Bxb1 {[%clk 00:07:30]}
{[%emt 00:00:01]} Kf8 {[%clk 00:01:28]} {[%emt 00:00:47]} 37. Bc2 {[%clk
00:06:37]} {[%emt 00:01:23]} Ke7 {[%clk 00:01:51]} {[%emt 00:00:08]} 38. Ke2
{[%clk 00:06:11]} {[%emt 00:00:56]} f6 {[%clk 00:02:05]} {[%emt 00:00:17]} 39.
Kd3 {[%clk 00:06:22]} {[%emt 00:00:18]} Bg1 {[%clk 00:01:50]} {[%emt 00:00:46]}
40. Bd1 {[%clk 00:06:14]} {[%emt 00:00:38]} Bb6 {[%clk 00:00:48]} {[%emt
00:01:32]} 41. Ke2 {[%clk 00:05:51]} {[%emt 00:00:52]} Bd4 {[%clk 00:01:06]}
{[%emt 00:00:13]} 42. Bd2 {[%clk 00:06:07]} {[%emt 00:00:14]} Bg1 {[%clk
00:01:07]} {[%emt 00:00:29]} 43. f4 {[%clk 00:05:44]} {[%emt 00:00:53]} Bb6
{[%clk 00:00:58]} {[%emt 00:00:39]} 44. fxe5 {[%clk 00:05:46]} {[%emt
00:00:29]} fxe5 {[%clk 00:01:04]} {[%emt 00:00:24]} 45. Kd3 {[%clk 00:04:15]}
{[%emt 00:02:00]} Bf2 {[%clk 00:01:25]} {[%emt 00:00:09]} 46. h5 {[%clk
00:03:51]} {[%emt 00:00:54]} gxh5 {[%clk 00:01:33]} {[%emt 00:00:23]} 47. Bxh5
{[%clk 00:04:00]} {[%emt 00:00:21]} Bxg3 {[%clk 00:01:58]} {[%emt 00:00:04]} 48.
Ke2 {[%clk 00:04:08]} {[%emt 00:00:22]} Bf4 {[%clk 00:02:11]} {[%emt 00:00:18]}
49. Be1 {[%clk 00:04:07]} {[%emt 00:00:31]} Bg5 {[%clk 00:02:11]} {[%emt
00:00:30]} 50. Bg3 {[%clk 00:04:09]} {[%emt 00:00:29]} Bc1 {[%clk 00:02:21]}
{[%emt 00:00:20]} 51. Bh4+ {[%clk 00:04:26]} {[%emt 00:00:12]} Bg5 {[%clk
00:02:47]} {[%emt 00:00:04]} 52. Bg3 {[%clk 00:04:55]} {[%emt 00:00:02]} Nd4+
{[%clk 00:02:04]} {[%emt 00:01:13]} 53. Kd3 {[%clk 00:05:04]} {[%emt 00:00:20]}
Nc6 {[%clk 00:02:29]} {[%emt 00:00:06]} 54. Kc3 {[%clk 00:04:50]} {[%emt
00:00:45]} Kd7 {[%clk 00:02:25]} {[%emt 00:00:34]} 55. Bg4+ {[%clk 00:04:06]}
{[%emt 00:01:13]} Kc7 {[%clk 00:02:51]} {[%emt 00:00:04]} 56. c5 {[%clk
00:04:19]} {[%emt 00:00:17]} dxc5 {[%clk 00:02:09]} {[%emt 00:01:12]} 57. bxc5
{[%clk 00:04:48]} {[%emt 00:00:01]} Bf4 {[%clk 00:01:26]} {[%emt 00:01:13]} 58.
Bh4 {[%clk 00:04:57]} {[%emt 00:00:21]} Nb8 {[%clk 00:01:42]} {[%emt 00:00:14]}
59. Kc4 {[%clk 00:05:13]} {[%emt 00:00:14]} Nd7 {[%clk 00:00:39]} {[%emt
00:01:33]} 60. Kd5 {[%clk 00:04:04]} {[%emt 00:01:38]} Be3 {[%clk 00:00:55]}
{[%emt 00:00:14]} 61. Be7 {[%clk 00:04:30]} {[%emt 00:00:04]} Bxc5 {[%clk
00:00:41]} {[%emt 00:00:44]} 62. Bxc5 {[%clk 00:04:58]} {[%emt 00:00:01]} Nf6+
{[%clk 00:01:07]} {[%emt 00:00:04]} 63. Kxe5 {[%clk 00:05:24]} {[%emt
00:00:05]} Nxg4+ {[%clk 00:01:34]} {[%emt 00:00:03]} 64. Kf5 {[%clk 00:05:46]}
{[%emt 00:00:08]} h5 {[%clk 00:01:30]} {[%emt 00:00:34]} 65. e5 {[%clk
00:05:10]} {[%emt 00:01:06]} Kd7 {[%clk 00:00:40]} {[%emt 00:01:20]} 66. e6+
{[%clk 00:05:34]} {[%emt 00:00:05]} Ke8 {[%clk 00:01:07]} {[%emt 00:00:03]} 67.
Kg5 {[%clk 00:05:59]} {[%emt 00:00:05]} Ne5 {[%clk 00:01:20]} {[%emt 00:00:17]}
68. Kxh5 {[%clk 00:06:12]} {[%emt 00:00:18]} Nd3 {[%clk 00:01:45]} {[%emt
00:00:04]} 69. Bd6 {[%clk 00:06:32]} {[%emt 00:00:11]} b5 {[%clk 00:02:07]}
{[%emt 00:00:08]} 70. Kg5 {[%clk 00:06:57]} {[%emt 00:00:04]} b4 {[%clk
00:02:32]} {[%emt 00:00:06]} 71. Bxb4 {[%emt 00:00:03]} 1/2-1/2

[Event "1er Tournoi de GM du Barreau de Paris"]
[Site "Paris, France"]
[Date "2019.12.18"]
[Round "5.3"]
[White "LOISEAU, Quentin"]
[Black "FEDORCHUK, Sergey"]
[Result "0-1"]
[TimeControl "1h30+30s\cp"]
[WhiteTitle "IM"]
[BlackTitle "GM"]
[WhiteElo "2470"]
[BlackElo "2636"]

1. e4 {[%clk 01:30:56]} {[%emt 00:00:02]} c5 {[%clk 01:29:34]} {[%emt
00:01:26]} 2. Nf3 {[%clk 01:31:09]} {[%emt 00:00:17]} Nc6 {[%clk 01:20:27]}
{[%emt 00:09:37]} 3. d4 {[%clk 01:29:07]} {[%emt 00:02:32]} cxd4 {[%clk
01:20:44]} {[%emt 00:00:13]} 4. Nxd4 {[%clk 01:29:31]} {[%emt 00:00:07]} Qb6
{[%clk 01:19:30]} {[%emt 00:01:44]} 5. Nb3 {[%clk 01:28:54]} {[%emt 00:01:06]}
Nf6 {[%clk 01:19:43]} {[%emt 00:00:18]} 6. Nc3 {[%clk 01:28:38]} {[%emt
00:00:45]} e6 {[%clk 01:20:00]} {[%emt 00:00:13]} 7. Qe2 {[%clk 01:27:50]}
{[%emt 00:01:19]} d6 {[%clk 01:17:09]} {[%emt 00:03:20]} 8. g4 {[%clk
01:24:47]} {[%emt 00:03:32]} a6 {[%clk 01:14:22]} {[%emt 00:03:18]} 9. Be3
{[%clk 01:10:44]} {[%emt 00:14:32]} Qc7 {[%clk 01:12:32]} {[%emt 00:02:21]} 10.
g5 {[%clk 01:09:14]} {[%emt 00:02:00]} Nd7 {[%clk 01:12:52]} {[%emt 00:00:09]}
11. f4 {[%clk 01:08:34]} {[%emt 00:01:10]} b5 {[%clk 01:12:24]} {[%emt
00:00:59]} 12. Bg2 {[%clk 01:06:10]} {[%emt 00:02:54]} Be7 {[%clk 00:58:22]}
{[%emt 00:14:32]} 13. O-O {[%clk 00:59:15]} {[%emt 00:07:25]} Rb8 {[%clk
00:50:03]} {[%emt 00:08:49]} 14. Rae1 {[%clk 00:54:17]} {[%emt 00:05:28]} Nb6
{[%clk 00:45:43]} {[%emt 00:04:50]} 15. Kh1 {[%clk 00:40:31]} {[%emt 00:14:15]}
Nc4 {[%clk 00:43:10]} {[%emt 00:03:03]} 16. Bg1 {[%clk 00:40:35]} {[%emt
00:00:26]} O-O {[%clk 00:37:22]} {[%emt 00:06:19]} 17. Qh5 {[%clk 00:30:57]}
{[%emt 00:10:08]} g6 {[%clk 00:32:36]} {[%emt 00:05:16]} 18. Qh6 {[%clk
00:28:29]} {[%emt 00:02:57]} Re8 {[%clk 00:32:32]} {[%emt 00:00:34]} 19. Nd5
{[%clk 00:26:00]} {[%emt 00:02:59]} exd5 {[%clk 00:31:04]} {[%emt 00:01:58]} 20.
exd5 {[%clk 00:24:02]} {[%emt 00:02:28]} Bb7 {[%clk 00:31:01]} {[%emt
00:00:33]} 21. dxc6 {[%clk 00:20:13]} {[%emt 00:04:18]} Qxc6 {[%clk 00:31:01]}
{[%emt 00:00:30]} 22. Qh3 {[%clk 00:17:59]} {[%emt 00:02:44]} Qxg2+ {[%clk
00:30:58]} {[%emt 00:00:33]} 23. Qxg2 {[%clk 00:18:28]} Bxg2+ {[%clk 00:31:19]}
{[%emt 00:00:11]} 24. Kxg2 {[%clk 00:18:56]} {[%emt 00:00:01]} Nxb2 {[%clk
00:31:13]} {[%emt 00:00:36]} 25. Bd4 {[%clk 00:16:58]} {[%emt 00:02:28]} Nc4
{[%clk 00:31:18]} {[%emt 00:00:25]} 26. Rf2 {[%clk 00:15:38]} {[%emt 00:01:50]}
Bf8 {[%clk 00:26:45]} {[%emt 00:05:03]} 27. Rfe2 {[%clk 00:16:03]} {[%emt
00:00:05]} Rxe2+ {[%clk 00:26:43]} {[%emt 00:00:32]} 28. Rxe2 {[%clk 00:16:31]}
{[%emt 00:00:01]} h6 {[%clk 00:24:56]} {[%emt 00:02:18]} 29. Bf6 {[%clk
00:13:50]} {[%emt 00:03:10]} Rc8 {[%clk 00:24:39]} {[%emt 00:00:47]} 30. h4
{[%clk 00:13:09]} {[%emt 00:01:11]} Nb6 {[%clk 00:24:00]} {[%emt 00:01:09]} 31.
Rd2 {[%clk 00:06:33]} {[%emt 00:07:06]} Re8 {[%clk 00:17:39]} {[%emt 00:06:51]}
32. Na5 {[%clk 00:06:01]} {[%emt 00:01:02]} Nd7 {[%clk 00:16:06]} {[%emt
00:02:02]} 33. Bd4 {[%clk 00:04:21]} {[%emt 00:02:10]} Nc5 {[%clk 00:14:16]}
{[%emt 00:02:20]} 34. Bxc5 {[%clk 00:03:28]} {[%emt 00:01:24]} dxc5 {[%clk
00:14:42]} {[%emt 00:00:04]} 35. Nc6 {[%clk 00:03:43]} {[%emt 00:00:14]} Re6
{[%clk 00:07:24]} {[%emt 00:07:49]} 36. Ne5 {[%clk 00:04:04]} {[%emt 00:00:09]}
hxg5 {[%clk 00:07:47]} {[%emt 00:00:07]} 37. hxg5 {[%clk 00:04:32]} {[%emt
00:00:02]} Bd6 {[%clk 00:07:46]} {[%emt 00:00:31]} 38. Rd5 {[%clk 00:04:38]}
{[%emt 00:00:24]} c4 {[%clk 00:05:34]} {[%emt 00:02:42]} 39. Kf3 {[%clk
00:04:49]} {[%emt 00:00:18]} Kf8 {[%clk 00:05:23]} {[%emt 00:00:41]} 40. Ng4
{[%clk 00:02:50]} {[%emt 00:02:28]} Ke7 {[%clk 00:05:19]} {[%emt 00:00:35]} 41.
Ne3 {[%clk 00:01:29]} {[%emt 00:01:51]} Ba3 {[%clk 00:02:16]} {[%emt 00:03:33]}
42. f5 {[%clk 00:01:00]} {[%emt 00:00:59]} Rd6 {[%clk 00:02:30]} {[%emt
00:00:17]} 43. Re5+ {[%clk 00:00:38]} {[%emt 00:00:52]} Kd7 {[%clk 00:02:52]}
{[%emt 00:00:08]} 44. Nd5 {[%clk 00:00:33]} {[%emt 00:00:36]} Bb2 {[%clk
00:02:13]} {[%emt 00:01:09]} 45. Nf6+ {[%clk 00:00:32]} {[%emt 00:00:31]} Rxf6
{[%clk 00:02:20]} {[%emt 00:00:23]} 0-1